[Event "Titled Tuesday Blitz February 14 Early 2023"]
[White "Sanal, Vahap"]
[Black "Pantsulaia, Levan"]
[WhiteFideId "6300545"]
[BlackFideId "13602071"]
[WhiteElo "2600"]
[BlackElo "2570"]
[Result "1-0"]
[Round "10"]
[TimeControl "180+2"]
[Date "2023.02.14"]
[WhiteClock "0:00:04"]
[BlackClock "0:00:15"]

1. e4 {[%clk 0:03:00]}  c5 {[%clk 0:02:59]} 2. Nc3 {[%clk 0:03:01]}  a6 {[%clk 0:02:58]} 3. g3 {[%clk 0:03:00]}  b5 {[%clk 0:02:58]} 4. Bg2 {[%clk 0:03:01]}  Bb7 {[%clk 0:02:59]} 5. d3 {[%clk 0:03:01]}  g6 {[%clk 0:02:56]} 6. h4 {[%clk 0:02:59]}  h5 {[%clk 0:02:53]} 7. Nf3 {[%clk 0:02:54]}  Bg7 {[%clk 0:02:53]} 8. O-O {[%clk 0:02:54]}  d6 {[%clk 0:02:52]} 9. Ng5 {[%clk 0:02:53]}  Nh6 {[%clk 0:02:51]} 10. a4 {[%clk 0:02:50]}  b4 {[%clk 0:02:50]} 11. Nd5 {[%clk 0:02:50]}  Nd7 {[%clk 0:02:47]} 12. c3 {[%clk 0:02:48]}  a5 {[%clk 0:02:46]} 13. Bd2 {[%clk 0:02:45]}  O-O {[%clk 0:02:45]} 14. Rc1 {[%clk 0:02:27]}  Ne5 {[%clk 0:02:45]} 15. Nf4 {[%clk 0:02:11]}  Ba6 {[%clk 0:02:37]} 16. c4 {[%clk 0:02:01]}  Nc6 {[%clk 0:02:25]} 17. b3 {[%clk 0:02:00]}  Nd4 {[%clk 0:02:25]} 18. Ne2 {[%clk 0:01:58]}  Ng4 {[%clk 0:02:24]} 19. Nxd4 {[%clk 0:01:55]}  Bxd4 {[%clk 0:02:25]} 20. Nf3 {[%clk 0:01:53]}  Bg7 {[%clk 0:02:24]} 21. Nh2 {[%clk 0:01:53]}  Ne5 {[%clk 0:02:23]} 22. Be3 {[%clk 0:01:51]}  Nc6 {[%clk 0:02:21]} 23. f4 {[%clk 0:01:51]}  e6 {[%clk 0:02:04]} 24. Nf3 {[%clk 0:01:46]}  Rc8 {[%clk 0:02:04]} 25. Rc2 {[%clk 0:01:40]}  Bb7 {[%clk 0:02:02]} 26. Rcf2 {[%clk 0:01:40]}  f5 {[%clk 0:01:52]} 27. Ng5 {[%clk 0:01:39]}  Re8 {[%clk 0:01:49]} 28. exf5 {[%clk 0:01:38]}  exf5 {[%clk 0:01:47]} 29. Bd5+ {[%clk 0:01:38]}  Kf8 {[%clk 0:01:48]} 30. Re1 {[%clk 0:01:17]}  Bc3 {[%clk 0:01:32]} 31. Ree2 {[%clk 0:01:07]}  Rc7 {[%clk 0:01:25]} 32. Ne6+ {[%clk 0:00:46]}  Rxe6 {[%clk 0:01:25]} 33. Bxe6 {[%clk 0:00:47]}  Nd4 {[%clk 0:01:25]} 34. Bxd4 {[%clk 0:00:28]}  Bxd4 {[%clk 0:01:26]} 35. Kf1 {[%clk 0:00:22]}  Bxf2 {[%clk 0:01:18]} 36. Kxf2 {[%clk 0:00:23]}  Qf6 {[%clk 0:01:18]} 37. Bd5 {[%clk 0:00:04]}  Bxd5 {[%clk 0:01:17]} 38. cxd5 {[%clk 0:00:05]}  Qd4+ {[%clk 0:01:18]} 39. Kf1 {[%clk 0:00:02]}  Qxd5 {[%clk 0:01:17]} 40. Kg1 {[%clk 0:00:02]}  c4 {[%clk 0:01:01]} 41. bxc4 {[%clk 0:00:02]}  Rxc4 {[%clk 0:01:01]} 42. Qe1 {[%clk 0:00:02]}  Qc5+ {[%clk 0:01:01]} 43. Kh2 {[%clk 0:00:02]}  Rc2 {[%clk 0:00:58]} 44. d4 {[%clk 0:00:01]}  Rxe2+ {[%clk 0:00:54]} 45. Qxe2 {[%clk 0:00:02]}  Qxd4 {[%clk 0:00:55]} 46. Qe6 {[%clk 0:00:02]}  b3 {[%clk 0:00:52]} 47. Qc8+ {[%clk 0:00:02]}  Ke7 {[%clk 0:00:50]} 48. Qb7+ {[%clk 0:00:02]}  Kf6 {[%clk 0:00:47]} 49. Qxb3 {[%clk 0:00:03]}  Qd2+ {[%clk 0:00:31]} 50. Kh3 {[%clk 0:00:03]}  Qc1 {[%clk 0:00:31]} 51. Kh2 {[%clk 0:00:03]}  Qd2+ {[%clk 0:00:24]} 52. Kh3 {[%clk 0:00:03]}  Qb4 {[%clk 0:00:25]} 53. Qg8 {[%clk 0:00:01]}  Qxa4 {[%clk 0:00:23]} 54. Qf8+ {[%clk 0:00:01]}  Ke6 {[%clk 0:00:23]} 55. Qg8+ {[%clk 0:00:02]}  Kd7 {[%clk 0:00:22]} 56. Qxg6 {[%clk 0:00:01]}  Qc2 {[%clk 0:00:23]} 57. Qh7+ {[%clk 0:00:01]}  Kc6 {[%clk 0:00:22]} 58. Qxh5 {[%clk 0:00:02]}  a4 {[%clk 0:00:22]} 59. Qe8+ {[%clk 0:00:02]}  Kd5 {[%clk 0:00:22]} 60. Qb5+ {[%clk 0:00:03]}  Ke4 {[%clk 0:00:22]} 61. h5 {[%clk 0:00:03]}  Qd1 {[%clk 0:00:20]} 62. Qc4+ {[%clk 0:00:02]}  Ke3 {[%clk 0:00:15]} 63. Qc3+ {[%clk 0:00:03]}  Qd3 {[%clk 0:00:15]} 64. Qxd3+ {[%clk 0:00:03]}  Kxd3 {[%clk 0:00:15]} 65. h6 {[%clk 0:00:04]} 1-0


[Site "https://www.chess.com"]

[Event "Titled Tuesday Blitz February 14 Early 2023"]
[White "Chigaev, Maksim"]
[Black "Bacrot, Etienne"]
[WhiteFideId "4108116"]
[BlackFideId "605506"]
[WhiteElo "2628"]
[BlackElo "2667"]
[Result "1-0"]
[Round "10"]
[TimeControl "180+2"]
[Date "2023.02.14"]
[WhiteClock "0:01:57"]
[BlackClock "0:01:40"]

1. c4 {[%clk 0:03:00]}  e5 {[%clk 0:02:59]} 2. g3 {[%clk 0:03:00]}  Nf6 {[%clk 0:02:58]} 3. Bg2 {[%clk 0:03:01]}  g6 {[%clk 0:02:59]} 4. Nc3 {[%clk 0:03:00]}  Bg7 {[%clk 0:02:59]} 5. Nf3 {[%clk 0:03:01]}  Nc6 {[%clk 0:02:59]} 6. O-O {[%clk 0:03:01]}  O-O {[%clk 0:03:00]} 7. d3 {[%clk 0:03:01]}  d6 {[%clk 0:02:59]} 8. b3 {[%clk 0:03:02]}  Re8 {[%clk 0:02:57]} 9. Bb2 {[%clk 0:02:57]}  e4 {[%clk 0:02:55]} 10. Nxe4 {[%clk 0:02:40]}  Nxe4 {[%clk 0:02:55]} 11. Bxg7 {[%clk 0:02:40]}  Kxg7 {[%clk 0:02:48]} 12. dxe4 {[%clk 0:02:40]}  Rxe4 {[%clk 0:02:48]} 13. Nd2 {[%clk 0:02:17]}  Re8 {[%clk 0:02:45]} 14. Ne4 {[%clk 0:02:15]}  h5 {[%clk 0:02:03]} 15. h4 {[%clk 0:02:06]}  Bg4 {[%clk 0:01:54]} 16. Qd2 {[%clk 0:02:01]}  Qe7 {[%clk 0:01:40]} 17. Rfe1 {[%clk 0:01:57]} 1-0


[Site "https://www.chess.com"]

[Event "Titled Tuesday Blitz February 14 Early 2023"]
[White "Murzin, Volodar"]
[Black "Hakobyan, Aram"]
[WhiteFideId "44155573"]
[BlackFideId "13306677"]
[WhiteElo "2604"]
[BlackElo "2608"]
[Result "0-1"]
[Round "10"]
[TimeControl "180+2"]
[Date "2023.02.14"]
[WhiteClock "0:00:02"]
[BlackClock "0:00:15"]

1. e4 {[%clk 0:03:00]}  c5 {[%clk 0:02:58]} 2. Nf3 {[%clk 0:03:00]}  d6 {[%clk 0:02:58]} 3. Bb5+ {[%clk 0:02:57]}  Bd7 {[%clk 0:02:59]} 4. Bxd7+ {[%clk 0:02:57]}  Nxd7 {[%clk 0:03:00]} 5. O-O {[%clk 0:02:57]}  Ngf6 {[%clk 0:03:00]} 6. Qe2 {[%clk 0:02:58]}  e6 {[%clk 0:03:00]} 7. Rd1 {[%clk 0:02:55]}  Be7 {[%clk 0:03:00]} 8. d4 {[%clk 0:02:55]}  cxd4 {[%clk 0:03:01]} 9. Nxd4 {[%clk 0:02:54]}  O-O {[%clk 0:03:01]} 10. c4 {[%clk 0:02:55]}  Qa5 {[%clk 0:03:01]} 11. Nc3 {[%clk 0:02:54]}  a6 {[%clk 0:02:58]} 12. Bd2 {[%clk 0:02:53]}  Qh5 {[%clk 0:02:54]} 13. Qxh5 {[%clk 0:02:53]}  Nxh5 {[%clk 0:02:55]} 14. Nde2 {[%clk 0:02:53]}  Rac8 {[%clk 0:02:51]} 15. b3 {[%clk 0:02:51]}  Rfd8 {[%clk 0:02:48]} 16. Be3 {[%clk 0:02:50]}  Nhf6 {[%clk 0:02:45]} 17. f3 {[%clk 0:02:46]}  Rc7 {[%clk 0:02:40]} 18. Rac1 {[%clk 0:02:44]}  Rdc8 {[%clk 0:02:39]} 19. Kf2 {[%clk 0:02:44]}  h5 {[%clk 0:02:34]} 20. g3 {[%clk 0:02:21]}  Ne5 {[%clk 0:02:21]} 21. h3 {[%clk 0:02:13]}  Ned7 {[%clk 0:01:47]} 22. g4 {[%clk 0:02:09]}  hxg4 {[%clk 0:01:43]} 23. hxg4 {[%clk 0:02:10]}  g5 {[%clk 0:01:43]} 24. a4 {[%clk 0:02:01]}  Nc5 {[%clk 0:01:39]} 25. Rb1 {[%clk 0:02:00]}  Nh7 {[%clk 0:01:33]} 26. Rh1 {[%clk 0:01:51]}  Nd3+ {[%clk 0:01:25]} 27. Kg3 {[%clk 0:01:43]}  Ne5 {[%clk 0:01:20]} 28. Rbd1 {[%clk 0:01:35]}  Nf8 {[%clk 0:01:02]} 29. Rh5 {[%clk 0:01:26]}  f6 {[%clk 0:01:02]} 30. Rdh1 {[%clk 0:01:06]}  Kf7 {[%clk 0:00:53]} 31. Nd4 {[%clk 0:00:53]}  Neg6 {[%clk 0:00:48]} 32. Kf2 {[%clk 0:00:29]}  Rd7 {[%clk 0:00:40]} 33. Ke2 {[%clk 0:00:27]}  Bd8 {[%clk 0:00:40]} 34. Nd1 {[%clk 0:00:07]}  d5 {[%clk 0:00:32]} 35. cxd5 {[%clk 0:00:06]}  exd5 {[%clk 0:00:32]} 36. Nf2 {[%clk 0:00:06]}  Bb6 {[%clk 0:00:29]} 37. Rh7+ {[%clk 0:00:04]}  Nxh7 {[%clk 0:00:28]} 38. Rxh7+ {[%clk 0:00:05]}  Ke8 {[%clk 0:00:29]} 39. Rh6 {[%clk 0:00:06]}  Bxd4 {[%clk 0:00:22]} 40. Rxg6 {[%clk 0:00:06]}  Rc2+ {[%clk 0:00:18]} 41. Kd3 {[%clk 0:00:06]}  Rxf2 {[%clk 0:00:19]} 42. Kxd4 {[%clk 0:00:02]}  dxe4+ {[%clk 0:00:14]} 43. Kxe4 {[%clk 0:00:03]}  Re7+ {[%clk 0:00:15]} 44. Kd3 {[%clk 0:00:02]}  Rxf3 {[%clk 0:00:15]} 0-1


[Site "https://www.chess.com"]

[Event "Titled Tuesday Blitz February 14 Early 2023"]
[White "Shimanov, Aleksandr"]
[Black "Gharibyan, Mamikon"]
[WhiteFideId "4198603"]
[BlackFideId "13308300"]
[WhiteElo "2581"]
[BlackElo "2500"]
[Result "1/2-1/2"]
[Round "10"]
[TimeControl "180+2"]
[Date "2023.02.14"]
[WhiteClock "0:00:02"]
[BlackClock "0:00:03"]

1. e4 {[%clk 0:03:00]}  e5 {[%clk 0:02:59]} 2. Nf3 {[%clk 0:03:00]}  Nc6 {[%clk 0:02:59]} 3. Nc3 {[%clk 0:03:00]}  Nf6 {[%clk 0:02:58]} 4. h3 {[%clk 0:03:01]}  a6 {[%clk 0:02:47]} 5. d4 {[%clk 0:02:59]}  exd4 {[%clk 0:02:47]} 6. Nxd4 {[%clk 0:03:00]}  Bb4 {[%clk 0:02:38]} 7. Nxc6 {[%clk 0:03:00]}  bxc6 {[%clk 0:02:38]} 8. Bd3 {[%clk 0:02:59]}  O-O {[%clk 0:02:37]} 9. O-O {[%clk 0:02:56]}  Re8 {[%clk 0:02:38]} 10. Bg5 {[%clk 0:02:37]}  h6 {[%clk 0:02:37]} 11. Bh4 {[%clk 0:02:37]}  Be7 {[%clk 0:02:35]} 12. e5 {[%clk 0:02:31]}  Nd5 {[%clk 0:02:34]} 13. Bxe7 {[%clk 0:02:30]}  Qxe7 {[%clk 0:02:33]} 14. Nxd5 {[%clk 0:02:16]}  cxd5 {[%clk 0:02:33]} 15. Re1 {[%clk 0:02:16]}  Qg5 {[%clk 0:02:25]} 16. c4 {[%clk 0:01:28]}  Bb7 {[%clk 0:02:18]} 17. Qb3 {[%clk 0:01:12]}  dxc4 {[%clk 0:02:13]} 18. Qxb7 {[%clk 0:01:08]}  cxd3 {[%clk 0:02:12]} 19. Qxc7 {[%clk 0:01:03]}  d2 {[%clk 0:02:10]} 20. Red1 {[%clk 0:01:00]}  Rac8 {[%clk 0:01:56]} 21. Qxd7 {[%clk 0:00:42]}  Red8 {[%clk 0:01:40]} 22. Qg4 {[%clk 0:00:39]}  Qxe5 {[%clk 0:01:39]} 23. Rxd2 {[%clk 0:00:33]}  Rxd2 {[%clk 0:01:33]} 24. Qxc8+ {[%clk 0:00:33]}  Kh7 {[%clk 0:01:33]} 25. Qxa6 {[%clk 0:00:28]}  Qxb2 {[%clk 0:01:31]} 26. Qf1 {[%clk 0:00:19]}  Rxf2 {[%clk 0:01:29]} 27. Qxf2 {[%clk 0:00:20]}  Qxa1+ {[%clk 0:01:29]} 28. Kh2 {[%clk 0:00:21]}  Kg8 {[%clk 0:00:49]} 29. Qc2 {[%clk 0:00:18]}  Qe5+ {[%clk 0:00:48]} 30. g3 {[%clk 0:00:18]}  h5 {[%clk 0:00:46]} 31. h4 {[%clk 0:00:19]}  g6 {[%clk 0:00:36]} 32. a4 {[%clk 0:00:18]}  Qa5 {[%clk 0:00:35]} 33. Qa2 {[%clk 0:00:16]}  Kg7 {[%clk 0:00:33]} 34. Qb2+ {[%clk 0:00:15]}  Kg8 {[%clk 0:00:32]} 35. Qd4 {[%clk 0:00:16]}  Qe1 {[%clk 0:00:27]} 36. Qd8+ {[%clk 0:00:13]}  Kg7 {[%clk 0:00:25]} 37. Qd4+ {[%clk 0:00:13]}  Kg8 {[%clk 0:00:25]} 38. Qd5 {[%clk 0:00:13]}  Qf2+ {[%clk 0:00:19]} 39. Qg2 {[%clk 0:00:13]}  Qa7 {[%clk 0:00:18]} 40. Qc2 {[%clk 0:00:11]}  Qa5 {[%clk 0:00:17]} 41. Kg2 {[%clk 0:00:10]}  Qd5+ {[%clk 0:00:17]} 42. Kf2 {[%clk 0:00:11]}  Qd4+ {[%clk 0:00:17]} 43. Kf1 {[%clk 0:00:07]}  Qe5 {[%clk 0:00:15]} 44. Qb3 {[%clk 0:00:07]}  Qa1+ {[%clk 0:00:10]} 45. Ke2 {[%clk 0:00:07]}  Qe5+ {[%clk 0:00:10]} 46. Kd2 {[%clk 0:00:07]}  Qd4+ {[%clk 0:00:09]} 47. Kc2 {[%clk 0:00:07]}  Qf2+ {[%clk 0:00:08]} 48. Kb1 {[%clk 0:00:08]}  Qe1+ {[%clk 0:00:08]} 49. Ka2 {[%clk 0:00:08]}  Qe2+ {[%clk 0:00:07]} 50. Ka3 {[%clk 0:00:06]}  Qe7+ {[%clk 0:00:06]} 51. Qb4 {[%clk 0:00:06]}  Qe3+ {[%clk 0:00:07]} 52. Qb3 {[%clk 0:00:07]}  Qc5+ {[%clk 0:00:05]} 53. Kb2 {[%clk 0:00:07]}  Qf2+ {[%clk 0:00:05]} 54. Kc1 {[%clk 0:00:07]}  Qe1+ {[%clk 0:00:05]} 55. Kc2 {[%clk 0:00:08]}  Qf2+ {[%clk 0:00:05]} 56. Kd1 {[%clk 0:00:07]}  Qf1+ {[%clk 0:00:04]} 57. Kd2 {[%clk 0:00:08]}  Qf2+ {[%clk 0:00:05]} 58. Kc1 {[%clk 0:00:08]}  Qe1+ {[%clk 0:00:05]} 59. Kb2 {[%clk 0:00:08]}  Qe2+ {[%clk 0:00:05]} 60. Kc3 {[%clk 0:00:06]}  Qe3+ {[%clk 0:00:03]} 61. Kc4 {[%clk 0:00:05]}  Qe6+ {[%clk 0:00:03]} 62. Kc3 {[%clk 0:00:05]}  Qe3+ {[%clk 0:00:03]} 63. Kb4 {[%clk 0:00:05]}  Qb6+ {[%clk 0:00:02]} 64. Kc4 {[%clk 0:00:05]}  Qe6+ {[%clk 0:00:02]} 65. Kb4 {[%clk 0:00:05]}  Qb6+ {[%clk 0:00:03]} 66. Ka3 {[%clk 0:00:05]}  Qc5+ {[%clk 0:00:03]} 67. Qb4 {[%clk 0:00:05]}  Qe3+ {[%clk 0:00:04]} 68. Qb3 {[%clk 0:00:02]}  Qc5+ {[%clk 0:00:03]} 1/2-1/2


[Site "https://www.chess.com"]

[Event "Titled Tuesday Blitz February 14 Early 2023"]
[White "Remizov, Yaroslav"]
[Black "Timofeev, Artyom"]
[WhiteFideId "34134015"]
[BlackFideId "4140419"]
[WhiteElo "2421"]
[BlackElo "2567"]
[Result "1-0"]
[Round "10"]
[TimeControl "180+2"]
[Date "2023.02.14"]
[WhiteClock "0:00:07"]
[BlackClock "0:00:08"]

1. e4 {[%clk 0:03:00]}  d6 {[%clk 0:02:59]} 2. d4 {[%clk 0:02:59]}  Nf6 {[%clk 0:02:59]} 3. Nc3 {[%clk 0:02:59]}  g6 {[%clk 0:03:00]} 4. Be3 {[%clk 0:02:55]}  c6 {[%clk 0:02:59]} 5. Qd2 {[%clk 0:02:53]}  b5 {[%clk 0:02:58]} 6. f3 {[%clk 0:02:52]}  Bb7 {[%clk 0:02:57]} 7. h4 {[%clk 0:02:48]}  Nbd7 {[%clk 0:02:56]} 8. Nh3 {[%clk 0:02:46]}  Nb6 {[%clk 0:02:53]} 9. b3 {[%clk 0:02:32]}  b4 {[%clk 0:02:49]} 10. Nd1 {[%clk 0:02:30]}  a5 {[%clk 0:02:49]} 11. Ndf2 {[%clk 0:02:28]}  Rc8 {[%clk 0:02:40]} 12. g4 {[%clk 0:02:18]}  c5 {[%clk 0:02:32]} 13. dxc5 {[%clk 0:02:10]}  dxc5 {[%clk 0:02:31]} 14. Bb5+ {[%clk 0:02:09]}  Bc6 {[%clk 0:02:29]} 15. Qxd8+ {[%clk 0:02:05]}  Kxd8 {[%clk 0:02:28]} 16. O-O-O+ {[%clk 0:02:02]}  Ke8 {[%clk 0:02:17]} 17. Bxc5 {[%clk 0:01:42]}  Bxb5 {[%clk 0:02:16]} 18. Bxb6 {[%clk 0:01:43]}  Be2 {[%clk 0:02:16]} 19. Bxa5 {[%clk 0:01:10]}  Bxd1 {[%clk 0:02:12]} 20. Rxd1 {[%clk 0:01:09]}  e6 {[%clk 0:02:09]} 21. Nd3 {[%clk 0:01:00]}  Ra8 {[%clk 0:01:56]} 22. Bxb4 {[%clk 0:00:58]}  Rxa2 {[%clk 0:01:56]} 23. Kb1 {[%clk 0:00:55]}  Ra8 {[%clk 0:01:51]} 24. Bc3 {[%clk 0:00:45]}  Bg7 {[%clk 0:01:51]} 25. g5 {[%clk 0:00:45]}  Nh5 {[%clk 0:01:51]} 26. Bxg7 {[%clk 0:00:45]}  Nxg7 {[%clk 0:01:51]} 27. Nc5 {[%clk 0:00:40]}  Nh5 {[%clk 0:01:44]} 28. Nf2 {[%clk 0:00:31]}  Kf8 {[%clk 0:01:25]} 29. Rd7 {[%clk 0:00:28]}  h6 {[%clk 0:01:16]} 30. Ng4 {[%clk 0:00:27]}  hxg5 {[%clk 0:01:16]} 31. hxg5 {[%clk 0:00:28]}  Nf4 {[%clk 0:01:12]} 32. Nh6 {[%clk 0:00:28]}  Rh7 {[%clk 0:01:10]} 33. Rb7 {[%clk 0:00:23]}  Ke8 {[%clk 0:00:59]} 34. Nd7 {[%clk 0:00:21]}  Nh5 {[%clk 0:00:55]} 35. Ne5 {[%clk 0:00:20]}  Rg7 {[%clk 0:00:38]} 36. Nhxf7 {[%clk 0:00:20]}  Kf8 {[%clk 0:00:37]} 37. Kb2 {[%clk 0:00:19]}  Nf4 {[%clk 0:00:35]} 38. b4 {[%clk 0:00:18]}  Nh3 {[%clk 0:00:29]} 39. Nd7+ {[%clk 0:00:15]}  Kg8 {[%clk 0:00:20]} 40. Nf6+ {[%clk 0:00:12]}  Kf8 {[%clk 0:00:20]} 41. Nd7+ {[%clk 0:00:11]}  Kg8 {[%clk 0:00:21]} 42. Nfe5 {[%clk 0:00:10]}  Nxg5 {[%clk 0:00:19]} 43. b5 {[%clk 0:00:11]}  Re7 {[%clk 0:00:15]} 44. b6 {[%clk 0:00:10]}  Kg7 {[%clk 0:00:15]} 45. Rc7 {[%clk 0:00:10]}  Nf7 {[%clk 0:00:12]} 46. b7 {[%clk 0:00:06]}  Rd8 {[%clk 0:00:11]} 47. Nc6 {[%clk 0:00:05]}  Rdxd7 {[%clk 0:00:09]} 48. Rxd7 {[%clk 0:00:06]}  Rxd7 {[%clk 0:00:08]} 49. b8=Q {[%clk 0:00:07]}  g5 {[%clk 0:00:08]} 50. Ne5 {[%clk 0:00:07]} 1-0


[Site "https://www.chess.com"]

[Event "Titled Tuesday Blitz February 14 Early 2023"]
[White "Mendonca, Leon Luke"]
[Black "Bharath Subramaniyam H"]
[WhiteFideId "35028561"]
[BlackFideId "46634827"]
[WhiteElo "2603"]
[BlackElo "2517"]
[Result "0-1"]
[Round "10"]
[TimeControl "180+2"]
[Date "2023.02.14"]
[WhiteClock "0:00:01"]
[BlackClock "0:00:13"]

1. Nf3 {[%clk 0:03:00]}  d5 {[%clk 0:02:59]} 2. e3 {[%clk 0:02:59]}  Nf6 {[%clk 0:02:58]} 3. c4 {[%clk 0:02:59]}  e6 {[%clk 0:02:58]} 4. b3 {[%clk 0:03:00]}  c6 {[%clk 0:02:55]} 5. Bb2 {[%clk 0:03:00]}  Bd6 {[%clk 0:02:56]} 6. Nc3 {[%clk 0:02:59]}  O-O {[%clk 0:02:54]} 7. d4 {[%clk 0:02:57]}  Nbd7 {[%clk 0:02:51]} 8. Be2 {[%clk 0:02:57]}  b6 {[%clk 0:02:50]} 9. O-O {[%clk 0:02:57]}  Bb7 {[%clk 0:02:50]} 10. Qc2 {[%clk 0:02:58]}  Qe7 {[%clk 0:02:50]} 11. Rfd1 {[%clk 0:02:54]}  Rfd8 {[%clk 0:02:50]} 12. Rac1 {[%clk 0:02:54]}  Rac8 {[%clk 0:02:50]} 13. Qb1 {[%clk 0:02:53]}  Bb8 {[%clk 0:02:41]} 14. Bf1 {[%clk 0:02:51]}  h6 {[%clk 0:02:36]} 15. a4 {[%clk 0:02:39]}  c5 {[%clk 0:02:33]} 16. cxd5 {[%clk 0:02:31]}  Nxd5 {[%clk 0:02:33]} 17. Ne4 {[%clk 0:02:16]}  cxd4 {[%clk 0:02:28]} 18. Bxd4 {[%clk 0:02:15]}  Nc5 {[%clk 0:02:14]} 19. Nxc5 {[%clk 0:02:04]}  bxc5 {[%clk 0:02:15]} 20. Bb2 {[%clk 0:02:05]}  Nxe3 {[%clk 0:01:16]} 21. fxe3 {[%clk 0:01:41]}  Bxf3 {[%clk 0:01:16]} 22. gxf3 {[%clk 0:01:42]}  Qg5+ {[%clk 0:01:16]} 23. Kh1 {[%clk 0:01:38]}  Qxe3 {[%clk 0:01:17]} 24. Qe4 {[%clk 0:01:27]}  Qxb3 {[%clk 0:01:06]} 25. Rxd8+ {[%clk 0:00:49]}  Rxd8 {[%clk 0:01:07]} 26. Ba1 {[%clk 0:00:49]}  Qa2 {[%clk 0:01:05]} 27. Bg2 {[%clk 0:00:43]}  Qd2 {[%clk 0:00:49]} 28. Rb1 {[%clk 0:00:36]}  Qd6 {[%clk 0:00:45]} 29. Qh4 {[%clk 0:00:24]}  c4 {[%clk 0:00:40]} 30. Rc1 {[%clk 0:00:19]}  Bc7 {[%clk 0:00:31]} 31. Bf1 {[%clk 0:00:19]}  Qa3 {[%clk 0:00:30]} 32. Qg4 {[%clk 0:00:13]}  g6 {[%clk 0:00:18]} 33. Qxc4 {[%clk 0:00:13]}  Qxf3+ {[%clk 0:00:18]} 34. Bg2 {[%clk 0:00:13]}  Rd1+ {[%clk 0:00:19]} 35. Rxd1 {[%clk 0:00:13]}  Qxd1+ {[%clk 0:00:19]} 36. Qf1 {[%clk 0:00:14]}  Qxa4 {[%clk 0:00:19]} 37. Qf6 {[%clk 0:00:13]}  Qd1+ {[%clk 0:00:19]} 38. Bf1 {[%clk 0:00:13]}  e5 {[%clk 0:00:18]} 39. Bc3 {[%clk 0:00:07]}  Qd5+ {[%clk 0:00:16]} 40. Bg2 {[%clk 0:00:07]}  Qc4 {[%clk 0:00:15]} 41. Bd2 {[%clk 0:00:02]}  Kh7 {[%clk 0:00:11]} 42. Be3 {[%clk 0:00:02]}  a5 {[%clk 0:00:08]} 43. Qe7 {[%clk 0:00:02]}  a4 {[%clk 0:00:07]} 44. Qd7 {[%clk 0:00:02]}  a3 {[%clk 0:00:06]} 45. Bd5 {[%clk 0:00:02]}  Qf1+ {[%clk 0:00:06]} 46. Bg1 {[%clk 0:00:03]}  Bb6 {[%clk 0:00:06]} 47. Qxf7+ {[%clk 0:00:03]}  Qxf7 {[%clk 0:00:07]} 48. Bxf7 {[%clk 0:00:04]}  Bxg1 {[%clk 0:00:06]} 49. Kxg1 {[%clk 0:00:05]}  Kg7 {[%clk 0:00:07]} 50. Bb3 {[%clk 0:00:05]}  Kf6 {[%clk 0:00:08]} 51. Kf2 {[%clk 0:00:06]}  e4 {[%clk 0:00:08]} 52. Ke3 {[%clk 0:00:06]}  Ke5 {[%clk 0:00:09]} 53. Ba2 {[%clk 0:00:06]}  g5 {[%clk 0:00:09]} 54. Bf7 {[%clk 0:00:06]}  h5 {[%clk 0:00:10]} 55. Ba2 {[%clk 0:00:06]}  g4 {[%clk 0:00:10]} 56. Bb3 {[%clk 0:00:06]}  h4 {[%clk 0:00:10]} 57. Ba2 {[%clk 0:00:04]}  g3 {[%clk 0:00:11]} 58. hxg3 {[%clk 0:00:04]}  hxg3 {[%clk 0:00:11]} 59. Bb3 {[%clk 0:00:03]}  Kd6 {[%clk 0:00:12]} 60. Ke2 {[%clk 0:00:02]}  Kc5 {[%clk 0:00:12]} 61. Ke3 {[%clk 0:00:01]}  Kb4 {[%clk 0:00:13]} 62. Be6 {[%clk 0:00:01]}  Kc3 {[%clk 0:00:13]} 0-1


[Site "https://www.chess.com"]

[Event "Titled Tuesday Blitz February 14 Early 2023"]
[White "Predke, Alexandr"]
[Black "Seo, Jung Min"]
[WhiteFideId "24107581"]
[BlackFideId "1734687"]
[WhiteElo "2685"]
[BlackElo "2494"]
[Result "1-0"]
[Round "10"]
[TimeControl "180+2"]
[Date "2023.02.14"]
[WhiteClock "0:00:39"]
[BlackClock "0:00:21"]

1. e4 {[%clk 0:03:00]}  c5 {[%clk 0:02:59]} 2. Nf3 {[%clk 0:03:00]}  e6 {[%clk 0:03:00]} 3. g3 {[%clk 0:02:58]}  d5 {[%clk 0:02:52]} 4. exd5 {[%clk 0:02:54]}  exd5 {[%clk 0:02:52]} 5. Bg2 {[%clk 0:02:54]}  Nc6 {[%clk 0:02:47]} 6. O-O {[%clk 0:02:55]}  Nf6 {[%clk 0:02:45]} 7. d4 {[%clk 0:02:55]}  Be7 {[%clk 0:02:43]} 8. dxc5 {[%clk 0:02:55]}  Bxc5 {[%clk 0:02:41]} 9. Nc3 {[%clk 0:02:50]}  O-O {[%clk 0:02:41]} 10. a3 {[%clk 0:02:51]}  Bg4 {[%clk 0:02:37]} 11. h3 {[%clk 0:02:39]}  Bh5 {[%clk 0:02:35]} 12. b4 {[%clk 0:02:31]}  Bb6 {[%clk 0:02:30]} 13. g4 {[%clk 0:02:26]}  Bg6 {[%clk 0:02:29]} 14. Bg5 {[%clk 0:02:27]}  d4 {[%clk 0:02:29]} 15. Na4 {[%clk 0:02:26]}  h6 {[%clk 0:02:24]} 16. Bh4 {[%clk 0:02:25]}  d3 {[%clk 0:02:17]} 17. cxd3 {[%clk 0:02:25]}  Qxd3 {[%clk 0:02:16]} 18. Nxb6 {[%clk 0:02:04]}  axb6 {[%clk 0:02:16]} 19. Bxf6 {[%clk 0:02:04]}  gxf6 {[%clk 0:02:15]} 20. Qc1 {[%clk 0:02:03]}  Kg7 {[%clk 0:02:11]} 21. Rd1 {[%clk 0:01:55]}  Qc2 {[%clk 0:02:07]} 22. Qxc2 {[%clk 0:01:52]}  Bxc2 {[%clk 0:02:07]} 23. Rd7 {[%clk 0:01:53]}  Nxb4 {[%clk 0:01:42]} 24. Nd4 {[%clk 0:01:53]}  Kg8 {[%clk 0:01:25]} 25. Rc1 {[%clk 0:01:40]}  Rxa3 {[%clk 0:01:21]} 26. Nxc2 {[%clk 0:01:40]}  Rc3 {[%clk 0:01:21]} 27. Nxb4 {[%clk 0:01:29]}  Rxc1+ {[%clk 0:01:21]} 28. Kh2 {[%clk 0:01:30]}  Kg7 {[%clk 0:01:12]} 29. Rxb7 {[%clk 0:01:27]}  Rb1 {[%clk 0:01:12]} 30. Nd5 {[%clk 0:01:24]}  Rb2 {[%clk 0:01:12]} 31. Kg3 {[%clk 0:01:23]}  b5 {[%clk 0:01:08]} 32. Rb6 {[%clk 0:01:13]}  b4 {[%clk 0:01:04]} 33. Nxf6 {[%clk 0:01:10]}  b3 {[%clk 0:01:02]} 34. Nh5+ {[%clk 0:01:08]}  Kg8 {[%clk 0:01:02]} 35. Bd5 {[%clk 0:01:07]}  Rd8 {[%clk 0:01:01]} 36. f3 {[%clk 0:00:59]}  Kf8 {[%clk 0:00:43]} 37. Nf4 {[%clk 0:00:52]}  Rb1 {[%clk 0:00:36]} 38. Bxb3 {[%clk 0:00:49]}  Rc8 {[%clk 0:00:29]} 39. Rb7 {[%clk 0:00:44]}  Rc3 {[%clk 0:00:25]} 40. Rb8+ {[%clk 0:00:41]}  Kg7 {[%clk 0:00:21]} 41. Nh5+ {[%clk 0:00:41]}  Kh7 {[%clk 0:00:21]} 42. Bc2+ {[%clk 0:00:39]} 1-0


[Site "https://www.chess.com"]